bitfinex-derivatives/quotes_ETHF0:USTF0_20241129
["timestamp","ask_amount","ask_price","bid_price","bid_amount"]
[1732851147725,0.27883,3585.8,3585.4,0.4364]
[1732851148022,0.4395,3586.1,3585.4,0.4364]
[1732851148322,0.27886,3585.4,3585.3,40.8]
[1732851148527,3.2078,3585.8,3585.0,0.4324]
[1732851148528,3.2078,3585.8,3585.0,0.8688]
[1732851148729,0.27886,3585.5,3585.0,3.2788]
[1732851149028,0.27886,3585.5,3585.1,40.8]
[1732851149926,0.4487,3585.6,3585.1,40.8]
[1732851149927,0.27886,3585.4,3585.1,40.8]
[1732851150323,0.4487,3585.6,3585.1,40.8]
[1732851150528,0.27886,3585.5,3585.1,40.8]
[1732851150827,0.4487,3585.6,3585.1,40.8]
[1732851150828,0.27886,3585.4,3585.1,40.8]
[1732851151025,0.4487,3585.6,3585.1,40.8]
[1732851151230,0.27888,3585.2,3585.1,40.8]
[1732851151529,0.4487,3585.6,3585.1,40.8]
[1732851151828,0.27887,3585.3,3585.1,40.8]
[1732851152530,0.27887,3585.4,3585.1,40.8]
[1732851152731,0.4487,3585.6,3585.1,40.8]
[1732851153027,0.27888,3585.2,3585.1,40.8]
[1732851154830,2.62878925,3585.6,3585.1,40.8]
[1732851155129,0.72755,3585.6,3585.1,45.01]
[1732851155820,0.27886,3585.5,3585.1,45.01]
[1732851156020,0.4487,3585.6,3585.1,45.01]
[1732851156224,0.72755,3585.6,3585.1,45.01]
[1732851157035,0.27885,3585.6,3585.1,45.01]
[1732851157329,5.38788925,3585.8,3585.1,45.01]
[1732851157530,5.38788925,3585.8,3585.2,2.12392791]
[1732851157531,3.48663,3585.8,3585.2,2.12392791]
[1732851157736,3.48663,3585.8,3585.2,3.17392791]
[1732851157930,3.2078,3585.8,3585.2,3.17392791]
[1732851158132,0.27884,3585.7,3585.3,40.8]
[1732851158328,0.27884,3585.7,3585.3,40.92]
[1732851158635,3.2078,3585.8,3585.3,40.92]
[1732851158832,0.27885,3585.6,3585.3,40.8]
[1732851159133,5.66671925,3585.8,3585.3,41.97]
[1732851159430,5.38788925,3585.8,3585.6,2.12392791]
[1732851159626,3.2078,3585.8,3585.7,0.4057]
[1732851159822,2.18008925,3586.1,3586.0,0.27882]
[1732851160022,1.76257,3586.6,3586.1,0.27881]
[1732851160023,2.62788925,3586.6,3586.1,0.27881]
[1732851160226,2.62788925,3586.6,3586.2,40.8]
[1732851160528,2.18008925,3586.7,3586.2,41.0788]
[1732851160926,2.18008925,3586.8,3586.4,2.12392791]
[1732851161127,2.18008925,3586.8,3586.4,4.64392791]
[1732851161338,2.18008925,3586.9,3586.5,0.842]
[1732851161630,4.40295407,3587.0,3586.6,0.27877]
[1732851161631,2.18008925,3587.0,3586.6,0.27877]
[1732851161832,2.18008925,3587.0,3586.6,1.94]
[1732851162238,2.45881925,3587.1,3586.6,1.94]
[1732851162538,2.18008925,3587.1,3586.6,1.94]
[1732851163236,2.18008925,3587.1,3586.6,2.21876]
[1732851163638,2.18008925,3587.1,3586.6,1.94]
[1732851163839,2.45881925,3587.1,3586.6,1.94]
[1732851164628,2.18008925,3587.1,3586.6,1.94]
[1732851164835,0.27874,3587.0,3586.6,1.94]
[1732851165440,0.27876,3586.8,3586.5,0.842]
[1732851165654,0.27875,3586.9,3586.5,0.842]
[1732851165859,0.27874,3587.0,3586.5,0.842]
[1732851166076,0.27875,3586.9,3586.5,0.842]
[1732851166549,2.18008925,3587.1,3586.5,0.842]
[1732851166747,0.72106,3586.8,3586.5,0.842]
[1732851167151,0.27878,3586.6,3586.2,3.2078]
[1732851167361,0.2788,3586.2,3585.8,0.8838]
[1732851167552,0.2788,3586.2,3585.8,0.9138]
[1732851167751,3.2078,3586.4,3585.7,3.2078]
[1732851167950,0.27883,3585.9,3585.7,3.2078]
[1732851168254,0.27882,3586.0,3585.7,3.2078]
[1732851168444,0.4334,3586.1,3585.7,3.2078]
[1732851168959,0.71221,3586.1,3585.7,3.2078]
[1732851169851,0.4334,3586.1,3585.7,3.2078]
[1732851170049,0.4334,3586.1,3585.7,4.5878]
[1732851170247,0.71221,3586.1,3585.7,4.5878]
[1732851172176,0.27882,3586.0,3585.7,4.5878]
[1732851172879,0.27883,3585.9,3585.7,3.2078]
[1732851173770,0.27883,3585.9,3585.6,42.92392791]
[1732851174671,0.27884,3585.8,3585.6,42.92392791]
[1732851174874,0.27882,3585.9,3585.6,42.92392791]
[1732851175075,0.4334,3586.1,3585.6,42.92392791]
[1732851175274,0.27882,3586.0,3585.6,42.92392791]
[1732851176364,2.61348925,3586.1,3585.6,42.92392791]
[1732851176568,0.71221,3586.1,3585.6,42.92392791]
[1732851177471,0.4334,3586.1,3585.6,42.92392791]
[1732851177672,0.27882,3586.0,3585.6,42.92392791]
[1732851177880,2.61348925,3586.1,3585.6,42.92392791]
[1732851178180,0.27882,3586.0,3585.6,42.92392791]
[1732851178376,0.27883,3585.9,3585.6,42.92392791]
[1732851178674,2.45890925,3586.0,3585.6,42.92392791]
[1732851178869,2.18008925,3586.0,3585.6,42.92392791]
[1732851179276,0.27883,3585.9,3585.6,42.92392791]
[1732851180379,2.45891925,3585.9,3585.6,42.92392791]
[1732851181079,2.18008925,3585.9,3585.6,40.8]
[1732851181284,0.27883,3585.8,3585.6,40.8]
[1732851182284,3.2078,3586.0,3585.6,40.8]
[1732851182471,0.27884,3585.7,3585.6,40.8]
[1732851182669,0.27883,3585.8,3585.6,40.8]
[1732851183879,5.38788925,3586.0,3585.6,40.8]
[1732851184167,3.2078,3586.0,3585.6,40.8]
[1732851184359,0.27883,3585.9,3585.6,40.8]
[1732851184763,3.2078,3586.0,3585.6,40.8]
[1732851184965,3.48662,3586.0,3585.6,42.92392791]
[1732851185150,0.4334,3586.1,3585.6,42.92392791]
[1732851185451,0.27883,3585.9,3585.6,42.92392791]
[1732851186147,2.61348925,3586.1,3585.6,42.92392791]
[1732851186364,2.18008925,3586.2,3586.1,0.27881]
[1732851186650,0.8139,3587.0,3586.1,4.619]
[1732851187353,2.46253203,3586.8,3586.2,0.2788]
[1732851187550,2.18377203,3586.8,3586.2,3.63]
[1732851187753,2.18377203,3586.9,3586.2,3.63]
[1732851188051,2.46253203,3586.8,3586.2,3.9088]
[1732851188246,0.27876,3586.7,3586.2,3.9088]
[1732851188449,2.18377203,3586.8,3586.2,3.63]
[1732851188647,2.46252203,3586.9,3586.3,0.27879]
[1732851188842,2.46252203,3586.9,3586.3,0.89879]
[1732851189154,2.18377203,3586.5,3586.3,0.89879]
[1732851189351,2.18377203,3586.5,3586.3,0.62]
[1732851190155,2.18377203,3586.5,3586.3,0.89879]
[1732851190748,2.18377203,3586.5,3586.3,0.62]
[1732851192155,2.18377203,3586.5,3586.1,0.6878]
[1732851192354,2.18377203,3586.4,3586.1,4.6878]
[1732851192557,2.18377203,3586.4,3586.1,4.409]
[1732851192756,4.80424406,3586.8,3586.2,0.2788]
[1732851192757,2.18377203,3586.5,3586.2,0.2788]
[1732851192956,2.18377203,3586.5,3586.2,4.7488]
[1732851193256,2.18377203,3586.5,3586.2,4.47]
[1732851194057,2.18377203,3586.5,3586.2,4.7488]
[1732851195053,2.18377203,3586.5,3586.2,4.47]
[1732851195357,2.18377203,3586.4,3586.1,0.409]
[1732851195655,2.18377203,3586.7,3586.5,0.27877]
[1732851195853,2.18377203,3586.7,3586.5,2.49877]
[1732851196354,2.18377203,3586.7,3586.6,0.27877]
[1732851196554,2.18377203,3586.8,3586.6,4.02876]
[1732851196953,2.18377203,3586.8,3586.7,0.27876]
[1732851197151,2.18377203,3586.8,3586.7,4.22876]
[1732851197352,0.27873,3587.1,3586.7,44.75]
[1732851197550,0.27873,3587.1,3586.8,0.4118]
[1732851197757,0.27873,3587.1,3586.8,0.5118]
[1732851198159,6.21997203,3587.2,3586.8,0.5118]
[1732851198160,5.39157203,3587.2,3586.9,0.27874]
[1732851198356,2.18377203,3587.3,3586.9,0.27874]
[1732851198856,2.18377203,3587.3,3586.9,1.28]
[1732851199060,2.18377203,3587.3,3587.1,0.27873]
[1732851199253,2.18377203,3587.4,3587.1,0.27873]
[1732851199461,2.18377203,3587.5,3587.1,0.27873]
[1732851199652,2.18377203,3587.5,3586.8,3.6196]
[1732851199853,2.18377203,3587.5,3587.0,2.12392791]
[1732851200052,2.18377203,3587.5,3587.1,0.27873]
[1732851200453,2.18377203,3587.5,3587.0,2.12392791]
[1732851200658,0.27871,3587.4,3587.0,6.39266791]
[1732851201058,2.46248203,3587.5,3587.1,0.27873]
[1732851201358,2.18377203,3587.5,3587.2,3.2078]
[1732851201559,3.2078,3587.7,3587.4,2.12392791]
[1732851201749,3.2078,3587.7,3587.6,0.27869]
[1732851202756,3.2078,3587.7,3587.5,0.4304]
[1732851203059,3.2078,3587.7,3587.6,41.07869]
[1732851203252,3.2078,3587.7,3587.6,40.8]
[1732851203459,3.2078,3587.7,3587.6,41.29]
[1732851203657,3.2078,3587.7,3587.6,41.98739]
[1732851203856,3.2078,3587.7,3587.6,41.7087]
[1732851204254,3.2078,3587.7,3587.6,41.98739]
[1732851204456,5.39157203,3587.7,3587.6,41.7087]
[1732851204659,3.27565804,3587.9,3587.6,41.7087]
[1732851204660,2.18377203,3587.8,3587.6,41.7087]
[1732851204958,2.18377203,3587.8,3587.6,41.98739]
[1732851205156,2.18377203,3587.8,3587.6,41.7087]
[1732851205561,2.18377203,3587.8,3587.6,41.98739]
[1732851206564,2.18377203,3587.9,3587.6,41.98739]
[1732851207149,2.18377203,3587.9,3587.6,41.7087]
[1732851207355,0.27868,3587.8,3587.6,41.7087]
[1732851207568,2.18377203,3587.9,3587.6,41.7087]
[1732851207765,0.27868,3587.8,3587.6,41.7087]
[1732851208056,2.18377203,3587.8,3587.6,3.79]
[1732851208260,2.18377203,3587.9,3587.8,0.27868]
[1732851208461,2.18377203,3588.0,3587.9,2.12392791]
[1732851208762,2.60467203,3588.1,3587.9,2.12392791]
[1732851208956,2.18377203,3588.1,3587.9,3.70392791]
[1732851209155,2.18377203,3588.1,3588.0,40.8]
[1732851209355,2.18377203,3588.1,3588.0,40.87]
[1732851210357,2.18377203,3588.1,3588.0,0.07]
[1732851210563,2.18377203,3588.2,3588.0,0.07]
[1732851210762,2.18377203,3588.1,3588.0,0.07]
[1732851210961,0.27867,3588.0,3587.7,0.8777]
[1732851211164,2.45791285,3588.0,3587.7,0.8777]
[1732851211459,3.21947,3588.3,3587.7,0.8777]
[1732851211661,0.27865,3588.1,3587.7,0.8777]
[1732851212261,0.27865,3588.2,3587.7,0.8777]
[1732851212854,0.27866,3588.0,3587.7,0.8777]
[1732851213059,3.2078,3588.3,3587.7,0.8777]
[1732851213358,0.27865,3588.1,3587.7,0.8777]
[1732851213559,3.2078,3588.3,3587.7,0.8777]
[1732851213754,0.27866,3588.0,3587.7,0.8777]
[1732851213957,0.27866,3588.1,3587.7,0.8777]
[1732851214161,3.48644,3588.3,3587.7,1.15638]
[1732851214365,0.27865,3588.2,3587.7,1.15638]
[1732851214554,0.27865,3588.2,3587.7,0.8777]
[1732851214754,0.27866,3588.0,3587.7,0.8777]
[1732851215260,0.27867,3587.9,3587.7,0.8777]
[1732851215456,3.2078,3588.3,3587.5,2.12392791]
[1732851215656,1.15948,3587.8,3587.5,2.12392791]
[1732851215855,0.27869,3587.7,3587.5,2.12392791]
[1732851216058,1.15948,3587.8,3587.5,2.12392791]
[1732851216261,0.8808,3587.8,3587.5,2.12392791]
[1732851216464,0.27869,3587.6,3587.5,2.12392791]
[1732851216773,0.27869,3587.7,3587.5,2.12392791]
[1732851218064,0.8808,3587.8,3587.5,2.12392791]
[1732851218268,1.15948,3587.8,3587.5,2.12392791]
[1732851218662,1.15948,3587.8,3587.5,6.04392791]
[1732851219367,0.27869,3587.7,3587.5,6.04392791]
[1732851219662,0.27869,3587.6,3587.5,3.92]
[1732851222069,0.27869,3587.7,3587.5,3.92]
[1732851222465,0.4392,3587.8,3587.5,3.92]
[1732851222668,0.27869,3587.6,3587.5,3.92]
[1732851225363,0.8576,3587.8,3587.5,3.92]
[1732851225565,0.27869,3587.7,3587.5,3.92]
[1732851225768,0.8576,3587.8,3587.5,3.92]
[1732851225969,1.13628,3587.8,3587.5,3.92]
[1732851226467,0.8576,3587.8,3587.5,3.92]
[1732851226666,0.4392,3587.8,3587.6,0.4091]
[1732851226873,0.4392,3587.8,3587.6,0.8178]
[1732851227076,2.17924285,3588.0,3587.6,0.8178]
[1732851227270,2.17924285,3588.0,3587.6,4.7778]
[1732851228963,2.45790285,3588.0,3587.6,4.7778]
[1732851229471,2.17924285,3587.9,3587.6,4.7778]
[1732851229669,2.17924285,3587.9,3587.6,5.05649]
[1732851229972,2.17924285,3588.1,3587.7,2.12392791]
[1732851230170,2.17924285,3588.1,3587.8,0.27867]
[1732851230369,2.17924285,3588.1,3587.9,0.27867]
[1732851230566,2.17924285,3588.1,3588.0,0.4142]
[1732851230771,0.27863,3588.4,3588.0,4.4742]
[1732851230772,2.17924285,3588.2,3588.0,4.4742]
[1732851230966,3.27565804,3588.4,3588.0,4.4742]
[1732851230967,2.45788285,3588.3,3588.0,4.4742]
[1732851231274,2.45788285,3588.2,3588.1,0.4476]
[1732851231471,2.4608895,3588.2,3588.1,45.6876]
[1732851231674,0.27864,3588.2,3588.1,45.6876]
[1732851231972,2.18226631,3588.2,3588.1,45.6876]
[1732851232668,2.18226631,3588.2,3588.1,45.6780454]
[1732851234270,2.18226631,3588.3,3588.1,45.6780454]
[1732851234579,2.46088631,3588.5,3588.1,45.6780454]
[1732851235168,2.18226631,3588.5,3588.1,45.6780454]
[1732851235370,2.46088631,3588.5,3588.1,45.6780454]
[1732851235570,2.18226631,3588.5,3588.1,45.6780454]
[1732851235775,0.27864,3588.3,3588.1,45.6780454]
[1732851235977,2.18226631,3588.4,3588.1,45.6780454]
[1732851236976,2.18226631,3588.4,3588.1,4.8780454]
[1732851237370,2.46089631,3588.4,3588.2,40.8]
[1732851237879,2.18226631,3588.4,3588.2,40.8]
[1732851238475,2.18226631,3588.3,3588.2,40.8]
[1732851238678,2.18226631,3588.4,3588.2,40.8]
[1732851239078,2.46089631,3588.4,3588.2,40.8]
[1732851239476,2.18226631,3588.3,3588.2,40.8]
[1732851239775,0.27864,3588.2,3588.1,0.4380454]
[1732851239982,2.46254212,3588.2,3588.1,3.7880454]
[1732851240280,2.46254212,3588.2,3588.1,44.5880454]
[1732851241481,0.27864,3588.2,3588.1,44.5880454]
[1732851241683,2.46372104,3588.2,3588.1,44.5880454]
[1732851242583,0.27864,3588.2,3588.1,44.5880454]
[1732851243080,2.463997,3588.2,3588.1,44.5880454]
[1732851243579,0.27864,3588.2,3588.1,44.5880454]
[1732851244386,3.55429804,3588.2,3588.1,44.5880454]
[1732851245276,0.27864,3588.2,3588.1,44.5880454]
[1732851246088,0.27864,3588.2,3588.1,0.4380454]
[1732851246484,4.36754406,3588.3,3588.0,0.4142]
[1732851246683,3.28120919,3588.1,3587.7,3.6429]
[1732851246985,3.55973313,3587.8,3587.7,3.6429]
[1732851249180,3.55973313,3587.8,3587.7,0.4351]
[1732851249385,3.28105313,3587.8,3587.7,0.4351]
[1732851249594,5.45943007,3587.9,3587.7,4.3451]
[1732851249795,5.45943007,3587.9,3587.8,8.11892791]
[1732851249796,3.28222727,3587.9,3587.8,8.11892791]
[1732851249986,3.28222727,3588.5,3588.4,0.27863]
[1732851250187,3.28222727,3588.8,3588.7,0.27861]
[1732851250391,3.28222727,3588.9,3588.7,44.73]
[1732851250696,3.28222727,3588.9,3588.7,45.0086]
[1732851250896,3.28222727,3588.9,3588.8,2.7864]
[1732851251092,3.28222727,3589.0,3588.8,6.7164]
[1732851251292,3.28222727,3589.0,3588.9,2.12392791]
[1732851251487,3.28222727,3589.0,3588.9,5.80392791]
[1732851252197,4.37630303,3589.2,3588.9,5.80392791]
[1732851252198,3.28222727,3589.1,3588.9,5.80392791]
[1732851252902,0.2786,3588.8,3588.7,40.8]
[1732851253193,3.2767394,3588.8,3588.7,3.64]
[1732851253598,6.55131609,3589.6,3588.7,55.4342]
[1732851253599,4.37630303,3589.6,3588.7,55.4342]
[1732851253793,0.29986,3590.0,3589.5,2.12392791]
[1732851253794,4.37630303,3589.8,3589.5,2.12392791]
[1732851253997,4.37630303,3589.8,3589.5,6.33392791]
[1732851254199,0.27852,3589.8,3589.5,6.33392791]
[1732851254998,4.79280303,3589.9,3589.5,6.33392791]
[1732851255201,0.4165,3589.9,3589.5,6.33392791]
[1732851257194,0.4165,3589.9,3588.9,2.12392791]
[1732851257195,0.27854,3589.5,3588.9,2.12392791]
[1732851257400,0.27854,3589.5,3588.9,6.13392791]
[1732851257401,0.4191,3589.4,3588.9,6.13392791]
[1732851258397,0.4191,3589.4,3588.9,6.00392791]
[1732851259799,0.27856,3589.3,3588.9,6.00392791]
[1732851259997,0.69765,3589.4,3588.9,6.00392791]
[1732851260197,0.4191,3589.4,3588.9,6.28251791]
[1732851261503,0.4191,3589.4,3588.9,6.00392791]
[1732851261804,0.4191,3589.4,3588.9,9.49031791]
[1732851262597,0.4191,3589.4,3588.9,9.21172791]
[1732851262795,0.4165,3589.9,3589.4,0.27855]
[1732851262796,0.69501,3589.9,3589.4,0.27855]
[1732851263002,0.27854,3589.5,3588.9,5.61031791]
[1732851263197,0.27854,3589.5,3589.0,40.8]
[1732851263498,0.27854,3589.5,3589.0,44.77]
[1732851263695,0.8449,3589.9,3589.0,45.04858]
[1732851263696,0.27854,3589.7,3589.0,45.04858]
[1732851263892,0.27855,3589.5,3589.0,44.77]
[1732851264094,0.27855,3589.4,3589.0,44.77]
[1732851264302,0.4166,3589.3,3589.0,44.77]
[1732851264599,0.4166,3589.3,3589.0,3.97]
[1732851264800,3.48637,3589.1,3589.0,3.97]
[1732851265097,3.48637,3589.1,3588.4,40.8]
[1732851265098,3.2078,3589.1,3588.4,40.8]
[1732851265298,0.27859,3588.9,3588.4,44.56]
[1732851265499,0.4446,3589.0,3588.4,44.56]
[1732851265700,0.4446,3589.0,3588.6,3.2078]
[1732851265902,0.4446,3589.0,3588.6,7.0178]
[1732851266398,0.72318,3589.0,3588.6,7.0178]
[1732851266603,0.4446,3589.0,3588.6,7.0178]
[1732851267000,0.72319,3589.0,3588.6,7.0178]
[1732851267807,0.4446,3589.0,3588.6,7.0178]
[1732851268203,0.4446,3589.0,3588.6,7.29641]
[1732851269306,0.4446,3589.0,3588.6,7.0178]
[1732851270506,0.2786,3588.8,3588.6,7.0178]
[1732851270703,0.4235,3588.7,3588.6,3.2078]
[1732851270899,1.12991,3588.7,3588.6,3.2078]
[1732851271107,1.12991,3588.7,3588.6,40.8]
[1732851272908,0.27863,3588.4,3587.9,2.12392791]
[1732851273107,0.4089,3588.3,3587.9,5.99392791]
[1732851273312,0.4089,3588.3,3588.0,40.8]
[1732851273512,0.4089,3588.3,3588.0,44.52]
[1732851273701,0.4089,3588.3,3588.1,0.27865]
[1732851274008,0.4089,3588.3,3588.1,3.92865]
[1732851274514,0.4089,3588.3,3588.1,3.65]
[1732851275406,0.4089,3588.3,3588.1,3.92865]
[1732851276413,0.4089,3588.3,3588.1,9.645]
[1732851276610,0.4089,3588.3,3588.2,0.27864]
[1732851276910,0.4089,3588.3,3588.2,4.67864]
[1732851277205,0.4089,3588.3,3588.2,45.47864]
[1732851281216,0.4089,3588.3,3588.2,45.2]
[1732851282114,0.4089,3588.3,3588.2,45.47864]
[1732851284608,0.4089,3588.3,3588.2,45.2]
[1732851284818,0.68754,3588.3,3588.2,45.2]
[1732851285011,0.4089,3588.3,3588.2,40.8]
[1732851286816,0.4089,3588.3,3588.2,41.07864]
[1732851287012,0.4089,3588.3,3588.2,40.8]
[1732851287719,0.4089,3588.3,3588.0,0.27866]
[1732851288017,0.4089,3588.3,3588.1,0.27865]
[1732851288018,0.4357,3588.2,3588.1,0.27865]
[1732851288223,0.4357,3588.2,3588.1,45.46865]
[1732851288916,0.4357,3588.2,3588.1,48.67645]
[1732851292026,0.4357,3588.2,3588.1,48.3978]
[1732851292829,0.4357,3588.2,3588.1,7.5978]
[1732851293031,0.71434,3588.2,3588.1,7.5978]
[1732851293328,0.4357,3588.2,3588.1,7.5978]
[1732851295531,0.4357,3588.2,3588.1,3.2078]
[1732851298723,0.4357,3588.2,3588.1,6.8178]
[1732851301025,0.4357,3588.2,3588.1,7.09645]
[1732851301231,0.4089,3588.3,3588.2,0.27864]
[1732851301426,0.4089,3588.3,3588.2,3.91864]
[1732851302021,0.4239,3588.6,3588.5,0.27862]
[1732851302226,0.8591,3588.6,3588.5,0.27862]
[1732851302426,0.8591,3588.6,3588.5,3.06862]
[1732851302634,8.87709294,3589.2,3588.5,7.70032791]
[1732851302635,7.56852294,3589.2,3588.5,7.70032791]
[1732851302930,7.56852294,3589.2,3589.0,0.27858]
[1732851302931,0.8591,3589.1,3589.0,0.27858]
[1732851304426,4.36072294,3589.7,3589.0,6.6664]
[1732851304726,0.8354,3589.5,3589.4,0.27855]
[1732851305728,0.8354,3589.5,3589.4,4.32]
[1732851305930,0.8354,3589.5,3589.1,4.36440159]
[1732851306130,0.8354,3589.5,3589.1,6.28440159]
[1732851306332,1.11395,3589.5,3589.1,1.92]
[1732851306731,1.11395,3589.5,3588.9,5.33172791]
[1732851306732,0.27857,3589.2,3588.9,3.2078]
[1732851306931,3.6218,3589.5,3588.9,3.2078]
[1732851306932,5.19612294,3589.5,3588.9,3.2078]
[1732851307133,0.27856,3589.4,3588.9,3.2078]
[1732851308429,5.19612294,3589.5,3588.9,3.2078]
[1732851308636,0.27857,3589.2,3588.7,4.36440159]
[1732851308936,0.27858,3589.1,3588.6,4.36440159]
[1732851309134,4.78412294,3589.0,3588.6,0.03]
[1732851309432,0.8706,3588.9,3588.4,0.27863]
[1732851309828,0.2786,3588.8,3588.3,4.36440159]
[1732851310029,0.2786,3588.8,3588.3,0.04]
[1732851310229,0.27861,3588.7,3588.3,0.04]
[1732851311032,4.63932294,3588.8,3588.3,0.04]
[1732851311229,0.27861,3588.7,3588.1,4.36440159]
[1732851311433,0.27861,3588.7,3588.1,8.56305159]
[1732851311836,4.36072294,3588.7,3588.1,3.92]
[1732851312042,4.36072294,3588.6,3588.1,3.92]
[1732851312443,4.63934294,3588.6,3588.1,3.92]
[1732851313139,4.36072294,3588.6,3588.1,3.92]
[1732851313343,4.36072294,3588.5,3588.1,3.92]
[1732851313640,3.28145829,3588.3,3588.1,3.92]
[1732851313835,0.4046,3588.2,3588.1,3.92]
[1732851315139,0.4046,3588.2,3588.1,4.19865]
[1732851317336,0.4046,3588.2,3588.1,3.92]
[1732851317935,0.4046,3588.2,3588.1,4.19865]
[1732851318242,0.4046,3588.2,3588.1,3.92]
[1732851319139,0.68324,3588.2,3588.1,3.92]
[1732851319344,0.4046,3588.2,3587.6,4.36440159]
[1732851319642,0.4046,3588.2,3587.5,9.75440238]
[1732851319643,0.27868,3587.8,3587.5,3.2078]
[1732851319942,0.822,3587.7,3587.5,3.2078]
[1732851320141,0.4333,3587.6,3587.5,3.2078]
[1732851323846,0.4333,3587.6,3587.3,4.64311159]
[1732851323847,0.4333,3587.6,3587.3,4.36440159]
[1732851324050,0.4333,3587.6,3587.4,0.27871]
[1732851324246,0.4333,3587.6,3587.5,4.36440159]
[1732851325149,0.4333,3587.6,3587.4,4.36440159]
[1732851325350,0.4333,3587.6,3587.4,0.23]
[1732851328450,2.7872,3587.5,3587.4,0.23]
[1732851328656,0.27871,3587.4,3586.8,4.64315159]
[1732851328957,5.61042791,3587.5,3586.9,0.27874]
[1732851329167,3.4865,3587.5,3586.9,0.27874]
[1732851329353,3.2078,3587.5,3586.7,45.16440159]
[1732851329658,0.27871,3587.4,3586.7,49.57316159]
[1732851329864,0.27872,3587.3,3586.7,49.57316159]
[1732851330164,3.2078,3587.5,3586.7,49.57316159]
[1732851330165,3.2078,3587.5,3586.7,49.29440159]
[1732851330395,0.27873,3587.1,3586.7,44.93]
[1732851330688,1.17014,3587.0,3586.7,4.13]
[1732851331076,0.8914,3587.0,3586.7,4.13]
[1732851331377,1.17014,3587.0,3586.7,4.13]
[1732851332959,0.8914,3587.0,3586.7,4.13]
[1732851335159,0.4481,3587.0,3586.7,4.13]
[1732851336762,0.8578,3587.4,3587.2,3.99]
[1732851337758,0.8578,3587.4,3587.3,0.27871]
[1732851337961,0.4374,3587.7,3587.5,0.27869]
[1732851338666,0.4374,3587.7,3587.5,0.2787]
[1732851338866,0.4374,3587.7,3587.2,3.2078]
[1732851339165,0.4374,3587.7,3587.4,0.2787]
[1732851339363,0.4374,3587.7,3587.4,4.5687]
[1732851339762,0.4374,3587.7,3587.4,4.29]
[1732851339955,0.4374,3587.7,3587.6,0.27869]
[1732851340153,0.4481,3587.9,3587.8,0.27868]
[1732851340665,0.4481,3587.9,3587.7,0.27868]
[1732851340862,0.4481,3587.9,3587.3,0.1646]
[1732851341163,0.4481,3587.9,3587.6,0.27869]
[1732851341466,0.4481,3587.9,3587.3,0.1646]
[1732851341668,0.4481,3587.9,3587.7,0.27868]
[1732851341870,0.4481,3587.9,3587.5,0.2787]
[1732851342162,0.4481,3587.9,3587.5,3.84]
[1732851342364,0.4481,3587.9,3587.7,0.27868]
[1732851343965,0.4481,3587.9,3587.5,0.2787]
[1732851344168,0.4481,3587.9,3587.6,0.27869]
[1732851344570,0.4481,3587.9,3587.4,40.8]
[1732851344761,0.4481,3587.9,3587.7,0.27868]
[1732851345266,0.4481,3587.9,3587.4,40.8]
[1732851345460,0.4481,3587.9,3587.8,0.27868]
[1732851345665,0.4481,3587.9,3587.8,4.11868]
[1732851346773,0.4481,3587.9,3587.8,3.84]
[1732851347069,0.4481,3587.9,3587.8,4.11868]
[1732851349268,0.4481,3587.9,3587.8,3.84]
[1732851349672,0.4481,3587.9,3587.8,4.11868]
[1732851350767,0.4481,3587.9,3587.6,3.2078]
[1732851350966,0.4481,3587.9,3587.6,7.0178]
[1732851351268,0.4481,3587.9,3587.7,0.27868]
[1732851351464,0.4481,3587.9,3587.7,4.52868]
[1732851352267,0.4481,3587.9,3587.7,4.25]
[1732851352570,0.4481,3587.9,3587.6,0.27869]
[1732851352764,0.4481,3587.9,3587.6,1.92]
[1732851352971,0.4481,3587.9,3587.0,6.54660238]
[1732851352972,0.27871,3587.5,3587.0,4.64314159]
[1732851353171,0.8544,3587.4,3587.0,2.42874]
[1732851353367,0.4241,3587.3,3587.2,0.27872]
[1732851353569,0.4241,3587.3,3587.1,40.8]
[1732851353872,0.4241,3587.3,3587.2,0.27872]
[1732851354465,0.4241,3587.3,3587.1,41.07873]
[1732851354665,0.4241,3587.3,3586.9,4.36440159]
[1732851354968,0.4241,3587.3,3586.8,9.75440238]
[1732851354969,0.27872,3587.2,3586.8,7.85095159]
[1732851355159,0.27872,3587.2,3586.9,40.8]
[1732851355364,2.54802791,3587.3,3586.9,41.07874]
[1732851355767,0.27872,3587.2,3586.9,40.8]
[1732851355962,2.54802791,3587.3,3586.9,40.8]
[1732851356866,2.82674791,3587.3,3586.9,40.8]
[1732851359175,2.54802791,3587.3,3586.9,41.07875]
[1732851359672,2.82674791,3587.3,3586.9,40.8]
[1732851360173,2.54802791,3587.3,3586.9,40.8]
[1732851360367,2.54802791,3587.3,3587.0,0.27873]
[1732851360564,2.54802791,3587.3,3586.9,0.27874]
[1732851360770,0.4241,3587.3,3586.9,0.27874]
[1732851360978,0.4241,3587.3,3587.1,40.8]
[1732851361172,0.70282,3587.3,3587.1,40.8]
[1732851361674,0.4241,3587.3,3587.1,40.8]
[1732851362365,2.12392791,3587.7,3587.1,40.8]
[1732851362366,3.28042157,3587.8,3587.2,2.788]
[1732851362571,0.8547,3587.9,3587.8,0.27868]
[1732851362776,0.4259,3587.9,3587.8,0.27868]
[1732851363170,0.4259,3587.9,3587.8,41.07868]
[1732851366675,0.4259,3587.9,3587.8,45.49868]
[1732851366978,0.4288,3588.3,3587.8,45.22]
[1732851367176,0.4288,3588.3,3588.2,0.27864]
[1732851367972,0.4288,3588.3,3588.1,0.27865]
[1732851368776,0.4288,3588.3,3587.9,3.2078]
[1732851368980,0.4288,3588.3,3588.2,0.27864]